fUSD/lending_fUSD_20260521
["ID","MTS","AMOUNT","RATE_DAILY","PERIOD"]
[422766422,1779371878000,-509.88,0.00039483,120]
[422766415,1779371878000,-509.88,0.00039483,120]
[422766414,1779371878000,-509.88,0.00039483,120]
[422766421,1779371878000,-509.88,0.00039483,120]
[422766419,1779371878000,-509.88,0.00039483,120]
[422766423,1779371878000,-509.88,0.00039483,120]
[422766417,1779371878000,-509.88,0.00039483,120]
[422766418,1779371878000,-509.88,0.00039483,120]
[422766416,1779371878000,-509.88,0.00039483,120]
[422766420,1779371878000,-509.88,0.00039483,120]
[422766430,1779371879000,-500.0,0.00039483,120]
[422766424,1779371879000,-509.88,0.00039483,120]
[422766426,1779371879000,-509.88,0.00039483,120]
[422766425,1779371879000,-509.88,0.00039483,120]
[422766427,1779371879000,-509.88,0.00039483,120]
[422766429,1779371879000,-510.10150243,0.00039483,120]
[422766428,1779371879000,-509.88,0.00039483,120]
[422766431,1779371879000,-560.31372071,0.00039483,120]
[422766441,1779371879000,-5000.0,0.00039483,120]
[422766432,1779371879000,-50662.96688193,0.00039483,120]
[422766440,1779371879000,-5000.0,0.00039483,120]
[422766439,1779371879000,-5000.0,0.00039483,120]
[422766438,1779371879000,-3667.83871395,0.00039483,120]
[422766433,1779371879000,-4761.50877254,0.00039483,120]
[422766436,1779371879000,-65547.42505159,0.00039483,60]
[422766434,1779371879000,-628.04,0.00039483,30]
[422766435,1779371879000,-5804.73440679,0.00039483,120]
[422766437,1779371879000,-7336.63343638,0.00039483,120]
[422766449,1779371880000,-5000.0,0.00039483,120]
[422766443,1779371880000,-5000.0,0.00039483,120]
[422766444,1779371880000,-5000.0,0.00039483,120]
[422766445,1779371880000,-5000.0,0.00039483,120]
[422766447,1779371880000,-5000.0,0.00039483,120]
[422766446,1779371880000,-5000.0,0.00039483,120]
[422766448,1779371880000,-5000.0,0.00039483,120]
[422766442,1779371880000,-5000.0,0.00039483,120]
[422766450,1779371880000,-5000.0,0.00039483,120]
[422766452,1779371880000,-5000.0,0.00039483,120]
[422766453,1779371880000,-5000.0,0.00039483,120]
[422766455,1779371880000,-5000.0,0.00039483,120]
[422766454,1779371880000,-5000.0,0.00039483,120]
[422766457,1779371880000,-5000.0,0.00039483,120]
[422766456,1779371880000,-5000.0,0.00039483,120]
[422766458,1779371880000,-5000.0,0.00039483,120]
[422766451,1779371880000,-5000.0,0.00039483,120]
[422766459,1779371881000,-5000.0,0.00039483,120]
[422766460,1779371881000,-5000.0,0.00039483,120]
[422766461,1779371881000,-5000.0,0.00039483,120]
[422766462,1779371881000,-5000.0,0.00039483,120]
[422766463,1779371881000,-5000.0,0.00039483,120]
[422766464,1779371881000,-5000.0,0.00039483,120]
[422766465,1779371881000,-5000.0,0.00039483,120]
[422766466,1779371881000,-5000.0,0.00039483,120]
[422766469,1779371881000,-5000.0,0.00039483,120]
[422766468,1779371881000,-5000.0,0.00039483,120]
[422766470,1779371881000,-5000.0,0.00039483,120]
[422766472,1779371881000,-5000.0,0.00039483,120]
[422766471,1779371881000,-5000.0,0.00039483,120]
[422766473,1779371881000,-5000.0,0.00039483,120]
[422766474,1779371881000,-5000.0,0.00039483,120]
[422766475,1779371881000,-5000.0,0.00039483,120]
[422766467,1779371881000,-5000.0,0.00039483,120]
[422766478,1779371882000,-5000.0,0.00039483,120]
[422766477,1779371882000,-5000.0,0.00039483,120]
[422766479,1779371882000,-5000.0,0.00039483,120]
[422766480,1779371882000,-5000.0,0.00039483,120]
[422766481,1779371882000,-5000.0,0.00039483,120]
[422766482,1779371882000,-5000.0,0.00039483,120]
[422766483,1779371882000,-5000.0,0.00039483,120]
[422766476,1779371882000,-5000.0,0.00039483,120]
[422766485,1779371882000,-5000.0,0.00039483,120]
[422766486,1779371882000,-5000.0,0.00039483,120]
[422766487,1779371882000,-5000.0,0.00039483,120]
[422766488,1779371882000,-5000.0,0.00039483,120]
[422766489,1779371882000,-5000.0,0.00039483,120]
[422766490,1779371882000,-5000.0,0.00039483,120]
[422766491,1779371882000,-5000.0,0.00039483,120]
[422766492,1779371882000,-5000.0,0.00039483,120]
[422766484,1779371882000,-5000.0,0.00039483,120]
[422766493,1779371883000,-5000.0,0.00039483,120]
[422766495,1779371883000,-5000.0,0.00039483,120]
[422766494,1779371883000,-5000.0,0.00039483,120]
[422766496,1779371883000,-5000.0,0.00039483,120]
[422766497,1779371883000,-5000.0,0.00039483,120]
[422766498,1779371883000,-5000.0,0.00039483,120]
[422766499,1779371883000,-5000.0,0.00039483,120]
[422766500,1779371883000,-5000.0,0.00039483,120]
[422766501,1779371883000,-5000.0,0.00039483,120]
[422766503,1779371883000,-5000.0,0.00039483,120]
[422766504,1779371883000,-5000.0,0.00039483,120]
[422766505,1779371883000,-5000.0,0.00039483,120]
[422766506,1779371883000,-5000.0,0.00039483,120]
[422766507,1779371883000,-5000.0,0.00039483,120]
[422766502,1779371883000,-5000.0,0.00039483,120]
[422766508,1779371884000,-5000.0,0.00039483,120]
[422766515,1779371884000,-5100.05913172,0.00039483,120]
[422766509,1779371884000,-5000.0,0.00039483,120]
[422766510,1779371884000,-5000.0,0.00039483,120]
[422766511,1779371884000,-5000.0,0.00039483,120]
[422766512,1779371884000,-5000.0,0.00039483,120]
[422766513,1779371884000,-5000.0,0.00039483,120]
[422766514,1779371884000,-5000.0,0.00039483,120]
[422766522,1779371884000,-5000.0,0.00039483,120]
[422766518,1779371884000,-5000.0,0.00039483,120]
[422766517,1779371884000,-5000.0,0.00039483,120]
[422766519,1779371884000,-5000.0,0.00039483,120]
[422766520,1779371884000,-5000.0,0.00039483,120]
[422766521,1779371884000,-5000.0,0.00039483,120]
[422766523,1779371884000,-5000.0,0.00039483,120]
[422766524,1779371884000,-5000.0,0.00039483,120]
[422766516,1779371884000,-5000.0,0.00039483,120]
[422766525,1779371885000,-5000.0,0.00039483,120]
[422766526,1779371885000,-5000.0,0.00039483,120]
[422766528,1779371885000,-5000.0,0.00039483,120]
[422766527,1779371885000,-5000.0,0.00039483,120]
[422766530,1779371885000,-5000.0,0.00039483,120]
[422766529,1779371885000,-5000.0,0.00039483,120]
[422766531,1779371885000,-5000.0,0.00039483,120]
[422766533,1779371885000,-2182.2677,0.00039483,120]
[422766534,1779371885000,-5000.0,0.00039483,120]
[422766535,1779371885000,-6317.0259516,0.00039483,120]
[422766536,1779371885000,-32771.34254202,0.00039483,120]
[422766538,1779371885000,-6424.51574867,0.00039483,120]
[422766537,1779371885000,-27373.34443695,0.00039483,120]
[422766539,1779371885000,-3733.80113359,0.00039483,120]
[422766540,1779371885000,-246822.7231364,0.00039483,120]
[422766532,1779371885000,-5000.0,0.00039483,120]
[422766548,1779371886000,-27897.0,0.00039483,120]
[422766541,1779371886000,-11597.6801995,0.00039483,120]
[422766542,1779371886000,-7190.22176901,0.00039483,120]
[422766543,1779371886000,-83275.16770849,0.00039483,120]
[422766544,1779371886000,-130461.31204037,0.00039483,120]
[422766546,1779371886000,-5363.85944123,0.00039483,120]
[422766545,1779371886000,-6500.00000001,0.00039483,120]
[422766547,1779371886000,-30684.8154622,0.00039483,120]
[422766556,1779371886000,-694.44,0.00039483,120]
[422766549,1779371886000,-6556.0528845,0.00039483,120]
[422766552,1779371886000,-694.44,0.00039483,120]
[422766551,1779371886000,-694.44,0.00039483,120]
[422766553,1779371886000,-694.44,0.00039483,120]
[422766555,1779371886000,-694.44,0.00039483,120]
[422766554,1779371886000,-694.44,0.00039483,120]
[422766557,1779371886000,-694.44,0.00039483,120]
[422766550,1779371886000,-694.44,0.00039483,120]
[422766558,1779371887000,-694.44,0.00039483,120]
[422766559,1779371887000,-694.44,0.00039483,120]
[422766560,1779371887000,-694.44,0.00039483,120]
[422766561,1779371887000,-694.44,0.00039483,120]
[422766562,1779371887000,-694.44,0.00039483,120]
[422766564,1779371887000,-694.44,0.00039483,120]
[422766563,1779371887000,-694.44,0.00039483,120]
[422766566,1779371887000,-694.44,0.00039483,120]
[422766565,1779371887000,-694.44,0.00039483,120]
[422766568,1779371887000,-694.44,0.00039483,120]
[422766574,1779371887000,-12200.0,0.00039483,120]
[422766573,1779371887000,-694.52,0.00039483,120]
[422766572,1779371887000,-694.44,0.00039483,120]
[422766575,1779371887000,-195.65481535,0.00039483,120]
[422766569,1779371887000,-694.44,0.00039483,120]
[422766570,1779371887000,-694.44,0.00039483,120]
[422766567,1779371887000,-694.44,0.00039483,120]
[422766571,1779371887000,-694.44,0.00039483,120]
[422766583,1779371888000,-500.0,0.00039483,120]
[422766576,1779371888000,-10000.0,0.00039483,120]
[422766578,1779371888000,-500.0,0.00039483,120]
[422766579,1779371888000,-500.0,0.00039483,120]
[422766580,1779371888000,-500.0,0.00039483,120]
[422766581,1779371888000,-500.0,0.00039483,120]
[422766582,1779371888000,-500.0,0.00039483,120]
[422766584,1779371888000,-500.0,0.00039483,120]
[422766577,1779371888000,-500.0,0.00039483,120]
[422766586,1779371888000,-500.0,0.00039483,120]
[422766585,1779371888000,-500.0,0.00039483,120]
[422766594,1779371888000,-868.05,0.00039483,120]
[422766591,1779371888000,-868.05,0.00039483,120]
[422766592,1779371888000,-868.05,0.00039483,120]
[422766593,1779371888000,-868.05,0.00039483,120]
[422766589,1779371888000,-868.05,0.00039483,120]
[422766587,1779371888000,-500.0,0.00039483,120]
[422766588,1779371888000,-500.0,0.00039483,120]
[422766590,1779371888000,-868.05,0.00039483,120]
[422766600,1779371889000,-868.05,0.00039483,120]
[422766597,1779371889000,-868.05,0.00039483,120]
[422766596,1779371889000,-868.05,0.00039483,120]
[422766598,1779371889000,-868.05,0.00039483,120]
[422766599,1779371889000,-868.05,0.00039483,120]
[422766601,1779371889000,-868.05,0.00039483,120]
[422766602,1779371889000,-868.05,0.00039483,120]
[422766595,1779371889000,-868.05,0.00039483,120]
[422766604,1779371889000,-868.05,0.00039483,120]
[422766605,1779371889000,-868.05,0.00039483,120]
[422766606,1779371889000,-868.05,0.00039483,120]
[422766607,1779371889000,-868.05,0.00039483,120]
[422766608,1779371889000,-868.05,0.00039483,120]
[422766609,1779371889000,-868.05,0.00039483,120]
[422766611,1779371889000,-868.05,0.00039483,120]
[422766610,1779371889000,-868.05,0.00039483,120]
[422766603,1779371889000,-868.05,0.00039483,120]
[422766612,1779371890000,-868.15,0.00039483,120]
[422766613,1779371890000,-1333.0,0.00039483,120]
[422766615,1779371890000,-1333.0,0.00039483,120]
[422766614,1779371890000,-1333.0,0.00039483,120]
[422766616,1779371890000,-1333.0,0.00039483,120]
[422766617,1779371890000,-1333.0,0.00039483,120]
[422766618,1779371890000,-1333.0,0.00039483,120]
[422766619,1779371890000,-600.0,0.00039483,120]
[422766621,1779371890000,-1275.2,0.00039483,120]
[422766622,1779371890000,-1275.2,0.00039483,120]
[422766623,1779371890000,-1275.2,0.00039483,120]
[422766624,1779371890000,-1275.2,0.00039483,120]
[422766625,1779371890000,-1275.2,0.00039483,120]
[422766626,1779371890000,-1275.2,0.00039483,120]
[422766627,1779371890000,-1275.2,0.00039483,120]
[422766620,1779371890000,-809.485,0.00039483,120]
[422766634,1779371891000,-1275.2,0.00039483,120]
[422766628,1779371891000,-1275.2,0.00039483,120]
[422766629,1779371891000,-1275.2,0.00039483,120]
[422766630,1779371891000,-1275.2,0.00039483,120]
[422766631,1779371891000,-1275.2,0.00039483,120]
[422766632,1779371891000,-1275.2,0.00039483,120]
[422766633,1779371891000,-1275.2,0.00039483,120]
[422766635,1779371891000,-1275.2,0.00039483,120]
[422766637,1779371891000,-1275.2,0.00039483,120]
[422766638,1779371891000,-1275.2,0.00039483,120]
[422766639,1779371891000,-1275.2,0.00039483,120]
[422766640,1779371891000,-1275.2,0.00039483,120]
[422766641,1779371891000,-1275.2,0.00039483,120]
[422766642,1779371891000,-1275.2,0.00039483,120]
[422766643,1779371891000,-1275.2,0.00039483,120]
[422766644,1779371891000,-1275.37,0.00039483,120]
[422766645,1779371891000,-130093.7137254,0.00039483,120]
[422766636,1779371891000,-1275.2,0.00039483,120]
[422766650,1779371892000,-1046607.93788844,0.00039483,61]
[422766648,1779371892000,-154.71840203,0.00039483,120]
[422766646,1779371892000,-249.0,0.00039483,120]
[422766649,1779371892000,-21724.9123303,0.00039483,120]
[422766647,1779371892000,-5390.349973,0.00039483,120]
[422766651,1779371896000,503.191998,0.00027163,120]
[422766652,1779371897000,303.304313,0.00026849,120]
[422766653,1779371926000,-164.08,0.00026218,30]
[422766654,1779371926000,-150.88,0.00027624,30]
[422766655,1779371926000,-153.14,0.00028364,30]
[422766657,1779371926000,-164.08,0.00028559,30]
[422766656,1779371926000,-151.17,0.00028366,30]
[422766661,1779371926000,-315.23,0.00029036,30]
[422766659,1779371926000,-276.6,0.00028559,30]
[422766660,1779371926000,-714.91,0.00028559,30]
[422766662,1779371926000,-184.4,0.00029036,30]
[422766664,1779371926000,-150.51,0.00029198,30]
[422766663,1779371926000,-476.61,0.00029036,30]
[422766658,1779371926000,-472.84,0.00028559,30]
[422766670,1779371927000,-184.4,0.00030671,30]
[422766668,1779371927000,-794.35,0.00030587,30]
[422766665,1779371927000,-151.31,0.00029523,30]
[422766666,1779371927000,-1024.0,0.00029747,120]
[422766671,1779371927000,-476.61,0.00030671,30]
[422766667,1779371927000,-307.34,0.00030587,30]
[422766673,1779371927000,-714.91,0.000309,30]
[422766669,1779371927000,-315.23,0.00030671,30]
[422766674,1779371927000,-150.51,0.00030906,30]
[422766675,1779371927000,-158.06,0.00031475,30]
[422766676,1779371927000,-151.31,0.00031719,30]
[422766677,1779371927000,-153.14,0.00032086,30]
[422766678,1779371927000,-151.16,0.00032224,30]
[422766679,1779371927000,-618.1,0.00032239,30]
[422766680,1779371927000,-307.34,0.00032239,30]
[422766681,1779371927000,-794.35,0.00032239,30]
[422766672,1779371927000,-276.6,0.000309,30]
[422766688,1779371928000,-1037.54,0.000331,30]
[422766687,1779371928000,-150.51,0.00032613,30]
[422766682,1779371928000,-315.23,0.00032305,30]
[422766684,1779371928000,-476.61,0.00032305,30]
[422766683,1779371928000,-184.4,0.00032305,30]
[422766689,1779371928000,-213.98,0.00033376,30]
[422766685,1779371928000,-1024.0,0.00032451,120]
[422766690,1779371928000,-473.53,0.000335,30]
[422766686,1779371928000,-213.98,0.00032612,30]
[422766692,1779371928000,-618.1,0.00033891,30]
[422766693,1779371928000,-307.34,0.00033892,30]
[422766694,1779371928000,-794.35,0.00033892,30]
[422766695,1779371928000,-151.31,0.00033914,30]
[422766696,1779371928000,-153.14,0.00033923,30]
[422766697,1779371928000,-151.17,0.00033928,30]
[422766698,1779371928000,-315.23,0.0003394,30]
[422766699,1779371928000,-184.4,0.0003394,30]
[422766691,1779371928000,-1037.54,0.000337,30]
[422766700,1779371929000,-476.61,0.0003394,30]
[422766701,1779371929000,-213.98,0.0003414,30]
[422766703,1779371929000,-1037.54,0.000345,30]
[422766702,1779371929000,-473.53,0.000343,30]
[422766704,1779371929000,-213.98,0.00034905,30]
[422766705,1779371929000,-1037.54,0.000352,30]
[422766710,1779371929000,-315.23,0.00035574,30]
[422766708,1779371929000,-307.34,0.00035544,30]
[422766707,1779371929000,-618.1,0.00035544,30]
[422766709,1779371929000,-794.35,0.00035544,30]
[422766712,1779371929000,-476.61,0.00035574,30]
[422766711,1779371929000,-184.4,0.00035574,30]
[422766713,1779371929000,-213.98,0.00035669,30]
[422766706,1779371929000,-473.53,0.000352,30]
[422766719,1779371930000,-158.06,0.00036598,30]
[422766718,1779371930000,-213.98,0.00036434,30]
[422766717,1779371930000,-1037.54,0.000364,30]
[422766720,1779371930000,-50203.2965,0.00036651,30]
[422766715,1779371930000,-473.53,0.000359,30]
[422766714,1779371930000,-1037.54,0.000358,30]
[422766716,1779371930000,-151.31,0.0003611,30]
[422766722,1779371930000,-473.53,0.00037,30]
[422766728,1779371930000,-184.4,0.00037209,30]
[422766723,1779371930000,-618.1,0.00037196,30]
[422766724,1779371930000,-307.34,0.00037197,30]
[422766725,1779371930000,-794.35,0.00037197,30]
[422766726,1779371930000,-213.98,0.00037198,60]
[422766727,1779371930000,-315.23,0.00037209,30]
[422766729,1779371930000,-476.61,0.00037209,30]
[422766730,1779371930000,-4081.45164778,0.000374,30]
[422766721,1779371930000,-156.27,0.00036687,30]
[422766731,1779371931000,-4081.45164776,0.000374,30]
[422766733,1779371931000,-213.98,0.00037962,60]
[422766732,1779371931000,-4081.45164776,0.000374,30]
[422766735,1779371931000,-153.18,0.00038298,30]
[422766734,1779371931000,-3911.18389515,0.00038203,30]
[422766736,1779371931000,-151.35,0.00038306,30]
[422766738,1779371931000,-10247.0933,0.0003864,30]
[422766737,1779371931000,-151.21,0.00038306,30]
[422766739,1779371931000,-382.938461,0.000387,43]
[422766740,1779371931000,-213.98,0.00038727,60]
[422766742,1779371931000,-398.256,0.00038914,44]
[422766741,1779371931000,-398.256,0.00038867,44]
[422766743,1779371931000,-1000.0,0.0003899,30]
[422766745,1779371931000,-187.75710464,0.00039383,56]
[422766744,1779371931000,-10000.0,0.00039209,30]
[422766746,1779371931000,-1734.27232484,0.000394,120]
[422766747,1779371932000,-167.07,0.00039483,120]
[422766749,1779371932000,-162.758272,0.00039483,30]
[422766750,1779371932000,-162.758272,0.00039483,30]
[422766751,1779371932000,-162.758272,0.00039483,30]
[422766753,1779371932000,-162.758272,0.00039483,30]
[422766752,1779371932000,-162.758272,0.00039483,30]
[422766754,1779371932000,-162.758272,0.00039483,30]
[422766755,1779371932000,-162.758272,0.00039483,30]
[422766748,1779371932000,-162.758272,0.00039483,30]
[422766757,1779371932000,-151.0,0.00039483,30]
[422766756,1779371932000,-151.000006,0.00039483,30]
[422766765,1779371932000,-151.0,0.00039483,30]
[422766763,1779371932000,-1500.45,0.00039483,30]
[422766761,1779371932000,-1500.45,0.00039483,30]
[422766764,1779371932000,-151.0,0.00039483,30]
[422766760,1779371932000,-1500.45,0.00039483,30]
[422766759,1779371932000,-153.21,0.00039483,30]
[422766758,1779371932000,-151.0,0.00039483,30]
[422766762,1779371932000,-1500.45,0.00039483,30]
[422766773,1779371933000,-176.14699703,0.00039483,30]
[422766766,1779371933000,-151.0,0.00039483,30]
[422766768,1779371933000,-478.0,0.00039483,30]
[422766769,1779371933000,-1254.0,0.00039483,120]
[422766771,1779371933000,-152.0,0.00039483,120]
[422766770,1779371933000,-500.0,0.00039483,120]
[422766772,1779371933000,-496.16848296,0.00039483,120]
[422766767,1779371933000,-151.0,0.00039483,30]
[422766775,1779371933000,-5000.0,0.00039491,30]
[422766777,1779371933000,-5000.0,0.00039491,30]
[422766776,1779371933000,-5000.0,0.00039491,30]
[422766779,1779371933000,-151.0,0.00039491,30]
[422766778,1779371933000,-449.0,0.00039491,30]
[422766780,1779371933000,-151.0,0.00039491,30]
[422766781,1779371933000,-159.017446,0.00039491,30]
[422766782,1779371933000,-213.98,0.00039491,90]
[422766774,1779371933000,-151.17,0.0003949,30]
[422766783,1779371934000,-500.0,0.000396,30]
[422766784,1779371934000,-536.57440033,0.00039627,120]
[422766785,1779371934000,-536.57440033,0.00039627,120]
[422766786,1779371934000,-536.57440033,0.00039627,120]
[422766788,1779371934000,-536.57440033,0.00039627,120]
[422766787,1779371934000,-536.57440033,0.00039627,120]
[422766789,1779371934000,-536.57440032,0.00039627,120]
[422766791,1779371934000,-536.57440032,0.00039627,120]
[422766792,1779371934000,-536.57440032,0.00039627,120]
[422766793,1779371934000,-536.57440032,0.00039627,120]
[422766794,1779371934000,-536.57440032,0.00039627,120]
[422766795,1779371934000,-957.74820633,0.000397,30]
[422766796,1779371934000,-536.57440033,0.00039764,120]
[422766797,1779371934000,-536.57440033,0.00039764,120]
[422766790,1779371934000,-536.57440032,0.00039627,120]
[422766798,1779371935000,-536.57440033,0.00039764,120]
[422766799,1779371935000,-536.57440033,0.00039764,120]
[422766800,1779371935000,-536.57440033,0.00039764,120]
[422766801,1779371935000,-536.57440032,0.00039764,120]
[422766802,1779371935000,-536.57440032,0.00039764,120]
[422766803,1779371935000,-536.57440032,0.00039764,120]
[422766806,1779371935000,-536.57440032,0.00039764,120]
[422766805,1779371935000,-536.57440032,0.00039764,120]
[422766807,1779371935000,-398.255999,0.000398,48]
[422766808,1779371935000,-500.0,0.00039999,31]
[422766809,1779371935000,-272.52477371,0.00039999,31]
[422766810,1779371935000,-264.13393662,0.00039999,31]
[422766811,1779371935000,-476.57268994,0.00039999,31]
[422766804,1779371935000,-536.57440032,0.00039764,120]
[422766812,1779371936000,-500.0,0.00039999,31]
[422766813,1779371936000,-194.56722709,0.00039999,31]
[422766814,1779371936000,-500.0,0.00039999,31]
[422766816,1779371936000,-616.31251878,0.00039999,31]
[422766815,1779371936000,-500.0,0.00039999,31]
[422766817,1779371936000,-526.85708946,0.00039999,31]
[422766819,1779371936000,-500.0,0.00039999,31]
[422766818,1779371936000,-453.99019654,0.00039999,31]
[422766821,1779371936000,-500.0,0.00039999,31]
[422766820,1779371936000,-500.0,0.00039999,31]
[422766823,1779371936000,-500.0,0.00039999,31]
[422766822,1779371936000,-500.0,0.00039999,31]
[422766825,1779371936000,-500.0,0.00039999,31]
[422766824,1779371936000,-500.0,0.00039999,31]
[422766827,1779371936000,-500.0,0.00039999,31]
[422766826,1779371936000,-500.0,0.00039999,31]
[422766829,1779371936000,-500.0,0.00039999,31]
[422766828,1779371936000,-500.0,0.00039999,31]
[422766830,1779371937000,-395.99987541,0.00039999,31]
[422766831,1779371937000,-500.0,0.00039999,31]
[422766832,1779371937000,-193.05964664,0.00039999,31]
[422766834,1779371937000,-500.0,0.00039999,31]
[422766836,1779371937000,-874.12308206,0.00039999,31]
[422766835,1779371937000,-874.12308206,0.00039999,31]
[422766838,1779371937000,-874.12308206,0.00039999,31]
[422766833,1779371937000,-297.02556284,0.00039999,31]
[422766839,1779371937000,-500.0,0.00039999,31]
[422766840,1779371937000,-874.12308206,0.00039999,31]
[422766841,1779371937000,-874.12308206,0.00039999,31]
[422766842,1779371937000,-874.12308206,0.00039999,31]
[422766843,1779371937000,-874.12308206,0.00039999,31]
[422766844,1779371937000,-874.12308206,0.00039999,31]
[422766845,1779371937000,-1000000.0,0.0004,120]
[422766846,1779371937000,-162.758272,0.0004,30]
[422766837,1779371937000,-500.0,0.00039999,31]
[422766847,1779371938000,-162.758272,0.0004,30]
[422766848,1779371938000,-162.758272,0.0004,30]
[422766849,1779371938000,-162.758272,0.0004,30]
[422766850,1779371938000,-151.0,0.0004,30]
[422766851,1779371938000,-151.0,0.0004,30]
[422766852,1779371938000,-150.81,0.0004,30]
[422766853,1779371938000,-1500.45,0.0004,30]
[422766854,1779371938000,-1500.45,0.0004,30]
[422766855,1779371938000,-1000000.0,0.0004,120]
[422766856,1779371938000,-1500.45,0.0004,30]
[422766857,1779371939000,-1000000.0,0.0004,120]
[422766859,1779371939000,-1000000.0,0.0004,120]
[422766858,1779371939000,-1000000.0,0.0004,120]
[422766860,1779371939000,-1500.45,0.0004,30]
[422766861,1779371939000,-151.0,0.0004,30]
[422766862,1779371939000,-151.0,0.0004,30]
[422766864,1779371939000,-151.0,0.0004,30]
[422766863,1779371939000,-151.0,0.0004,30]
[422766872,1779371939000,-577.740962,0.0004005,30]
[422766865,1779371939000,-151.0,0.0004,30]
[422766868,1779371939000,-577.740962,0.0004005,30]
[422766867,1779371939000,-151.0,0.0004005,30]
[422766870,1779371939000,-577.740962,0.0004005,30]
[422766869,1779371939000,-577.740962,0.0004005,30]
[422766871,1779371939000,-151.0,0.0004005,30]
[422766874,1779371939000,-151.0,0.0004005,30]
[422766873,1779371939000,-151.0,0.0004005,30]
[422766866,1779371939000,-407347.0,0.0004,120]
[422766879,1779371940000,-639.28938188,0.0004047,114]
[422766875,1779371940000,-500.0,0.00040256,60]
[422766876,1779371940000,-1327.25,0.0004029,60]
[422766877,1779371940000,-396.3,0.0004029,60]
[422766878,1779371940000,-360.85569938,0.0004047,114]
[422766880,1779371940000,-152.0,0.00040483,120]
[422766882,1779371940000,-234.45341024,0.00040809,120]
[422766888,1779371940000,-392358.51547611,0.00041,120]
[422766883,1779371940000,-450.0,0.00040853,30]
[422766884,1779371940000,-156.30227349,0.00040891,90]
[422766886,1779371940000,-1000000.0,0.00041,120]
[422766885,1779371940000,-1000000.0,0.00041,120]
[422766887,1779371940000,-1000000.0,0.00041,120]
[422766881,1779371940000,-500.0,0.000405,60]
[422766889,1779371941000,207.934525,0.0002842,120]
[422766890,1779371951000,-154.45,0.00025236,30]
[422766891,1779371951000,-154.45,0.00026105,30]
[422766892,1779371951000,-164.75,0.00028162,30]
[422766893,1779371951000,-164.75,0.00028162,30]
[422766895,1779371951000,-219.78,0.00028164,30]
[422766894,1779371951000,-164.75,0.00028162,30]
[422766897,1779371951000,-219.78,0.00028164,30]
[422766896,1779371951000,-219.78,0.00028164,30]
[422766898,1779371951000,-219.78,0.00028164,30]
[422766899,1779371951000,-219.78,0.00028164,30]
[422766900,1779371951000,-219.78,0.00028164,30]
[422766901,1779371951000,-484.27,0.00028273,30]
[422766902,1779371951000,-484.27,0.00028273,30]
[422766903,1779371951000,-484.27,0.00028273,30]
[422766904,1779371952000,-484.27,0.00028273,30]
[422766905,1779371952000,-484.27,0.00028273,30]
[422766906,1779371952000,-484.27,0.00028273,30]
[422766907,1779371952000,-153.83,0.00038791,30]
[422766908,1779371952000,-424.43,0.00039,30]
[422766909,1779371952000,-552.98424452,0.00039999,31]
[422766910,1779371952000,-4045.94976772,0.00039999,31]
[422766918,1779371952000,-1000000.0,0.00041,120]
[422766913,1779371952000,-1798.21,0.00040626,120]
[422766912,1779371952000,-1230.66,0.0004,30]